bitfinex-derivatives/quotes_ETHF0:USTF0_20240822
["timestamp","ask_amount","ask_price","bid_price","bid_amount"]
[1724285930322,3.2078,2639.2,2639.0,1.367]
[1724285930524,4.16758,2639.1,2639.0,1.367]
[1724285930715,3.2078,2639.2,2639.1,1.367]
[1724285931110,7.37964719,2639.2,2639.1,1.37055595]
[1724285931311,0.37881,2639.0,2638.4,3.2078]
[1724285931517,3.2078,2638.9,2638.3,0.3646]
[1724285931812,0.37883,2638.8,2638.7,1.367]
[1724285932013,3.5908,2638.8,2638.7,1.367]
[1724285932220,4.1726,2638.8,2638.7,1.367]
[1724285932419,4.1726,2638.8,2638.7,0.0042992]
[1724285933027,7.75923,2638.8,2638.7,0.0042992]
[1724285934123,0.37884,2638.7,2638.3,3.276]
[1724285934510,0.3624,2638.6,2638.3,3.276]
[1724285934919,0.37888,2638.4,2638.0,3.28169487]
[1724285935124,3.58673,2638.1,2638.0,0.01035007]
[1724285935516,3.2078,2638.1,2638.0,0.01035007]
[1724285935710,6.9982,2638.1,2638.0,0.01035007]
[1724285936222,3.2078,2638.1,2638.0,0.01035007]
[1724285937119,6.9982,2638.1,2638.0,0.01035007]
[1724285938120,7.37713,2638.1,2638.0,0.01035007]
[1724285939529,0.37896,2637.9,2637.4,3.276]
[1724285939726,0.72955,2638.0,2637.5,0.37901]
[1724285940426,0.72955,2638.0,2637.5,0.3881713]
[1724285940822,0.3506,2638.0,2637.5,0.3881713]
[1724285941025,0.72955,2638.0,2637.5,0.3881713]
[1724285941526,0.3506,2638.0,2637.5,0.0091613]
[1724285941729,0.3506,2638.0,2637.8,0.37896]
[1724285941932,0.3506,2638.0,2637.9,0.37896]
[1724285942832,0.3506,2638.0,2637.7,3.276]
[1724285942833,0.3506,2638.0,2637.8,0.37896]
[1724285943235,0.3506,2638.0,2637.9,0.37896]
[1724285943533,3.2078,2638.1,2637.9,0.37896]
[1724285943736,3.2078,2638.1,2638.0,0.37894]
[1724285944129,3.2078,2638.1,2638.0,3.7904]
[1724285944632,3.2078,2638.1,2638.0,4.16934]
[1724285944836,12.3631,2638.1,2637.5,0.0091613]
[1724285945134,3.2078,2638.0,2637.5,0.0091613]
[1724285945333,3.6878,2638.0,2637.5,0.0091613]
[1724285945536,3.2078,2638.0,2637.5,0.0091613]
[1724285945730,0.37898,2637.8,2637.5,0.0091613]
[1724285945931,3.2078,2638.0,2637.5,0.0091613]
[1724285946128,0.379,2637.6,2637.5,0.0091613]
[1724285946639,3.2078,2637.7,2637.5,0.0091613]
[1724285946834,0.3761,2637.6,2637.5,0.0091613]
[1724285947731,4.5463,2637.6,2637.5,0.0091613]
[1724285947931,0.7551,2637.6,2637.5,0.0091613]
[1724285948129,0.3761,2637.6,2637.5,0.0091613]
[1724285948329,3.2078,2637.7,2637.5,0.0091613]
[1724285948740,3.58679,2637.7,2637.5,0.0091613]
[1724285948938,0.7551,2637.6,2637.5,0.0091613]
[1724285949240,1.1032,2637.6,2637.5,0.0091613]
[1724285949443,4.8944,2637.6,2637.5,0.0091613]
[1724285949942,4.5154,2637.6,2637.5,0.0091613]
[1724285950242,4.8944,2637.6,2637.5,0.0091613]
[1724285951540,0.37903,2637.4,2636.8,4.92701]
[1724285951737,3.5791,2637.3,2636.8,0.74101]
[1724285952440,3.58306674,2637.3,2636.8,0.37081522]
[1724285952647,3.58306674,2637.3,2636.9,0.3791]
[1724285952940,3.58306674,2637.3,2636.8,0.00891522]
[1724285953535,0.37906,2637.2,2636.8,0.00891522]
[1724285953737,0.76458,2637.1,2636.8,0.00891522]
[1724285953938,3.58689,2637.0,2636.8,0.00891522]
[1724285954241,3.2078,2637.0,2636.8,0.00891522]
[1724285954730,4.1711,2636.9,2636.8,0.00891522]
[1724285954937,4.1711,2636.9,2634.7,3.38664099]
[1724285954938,0.37927,2635.8,2635.2,0.37934]
[1724285955132,3.2078,2635.7,2635.2,6.4838]
[1724285955434,5.31,2636.3,2635.9,0.37924]
[1724285955636,5.31,2636.3,2635.8,0.37925]
[1724285955835,5.31568376,2636.3,2635.8,0.38778538]
[1724285956034,5.31568376,2636.3,2635.9,0.37924]
[1724285956533,5.31568376,2636.3,2635.8,0.00853538]
[1724285956729,5.31568376,2636.3,2636.0,0.37922]
[1724285956938,0.00568376,2636.3,2636.1,0.37921]
[1724285958054,0.00568376,2636.3,2636.0,0.37922]
[1724285958737,0.00568376,2636.3,2635.9,0.74244]
[1724285959135,3.276,2636.0,2634.5,6.4838]
[1724285959341,3.2078,2635.7,2634.8,3.2078]
[1724285959646,3.58708,2635.7,2635.0,0.37936]
[1724285960143,3.58708,2635.7,2635.1,0.38504376]
[1724285960841,3.2078,2635.7,2635.1,0.00568376]
[1724285961044,3.2078,2635.0,2633.6,3.2078]
[1724285961237,3.2078,2635.1,2634.2,0.3679]
[1724285961436,3.2078,2634.8,2634.2,0.74738]
[1724285961841,3.2078,2634.8,2634.2,0.3679]
[1724285962147,0.00885549,2634.8,2634.7,0.37942]
[1724285962337,3.2078,2635.3,2635.2,0.37934]
[1724285962540,3.2078,2635.3,2635.2,4.17374]
[1724285963240,3.21081315,2635.3,2635.2,4.17374]
[1724285967237,3.21081315,2635.3,2635.2,9.17374]
[1724285968144,0.00301315,2635.3,2635.2,9.17374]
[1724285972251,0.00301315,2635.3,2635.2,9.52794]
[1724285972842,0.00301315,2635.3,2635.2,34.22794]
[1724285976453,0.00568376,2635.5,2635.4,0.37932]
[1724285976949,0.00568376,2635.5,2635.4,9.17372]
[1724285977647,0.00904251,2635.5,2635.4,9.17372]
[1724285979348,0.00904251,2635.5,2635.4,4.17372]
[1724285979645,0.00904251,2635.5,2635.2,0.0045]
[1724285979856,0.00904251,2635.5,2635.4,0.37932]
[1724285984554,0.00904251,2635.5,2635.4,4.17372]
[1724285987665,0.00904251,2635.5,2635.4,9.17372]
[1724285987964,0.00904251,2635.5,2635.4,9.53972]
[1724285990258,0.00904251,2635.5,2635.4,4.53972]
[1724285990664,0.00904251,2635.5,2635.4,9.53972]
[1724285993560,0.00904251,2635.5,2635.4,4.53972]
[1724285993758,0.00904251,2635.5,2635.4,4.17372]
[1724285994064,0.00904251,2635.5,2635.4,0.37932]
[1724285995962,0.00904251,2635.5,2635.4,4.17372]
[1724286000164,0.00904251,2635.5,2635.4,0.37932]
[1724286001160,0.00904251,2635.5,2635.4,4.17372]
[1724286002169,0.00904251,2635.5,2635.4,0.37932]
[1724286007175,3.21684251,2635.5,2635.4,0.37932]
[1724286009480,3.21684251,2635.5,2635.3,0.37932]
[1724286009665,1.1105,2635.4,2635.1,0.37936]
[1724286010167,3.2078,2635.2,2635.1,0.37936]
[1724286010569,7.003,2635.2,2635.0,0.37936]
[1724286010764,3.2078,2635.2,2635.0,0.37936]
[1724286011574,3.2078,2635.2,2635.1,0.37936]
[1724286019780,3.2078,2635.2,2635.1,0.74266]
[1724286021987,3.2078,2635.2,2635.1,0.37936]
[1724286024291,0.7534,2635.4,2635.3,0.37933]
[1724286024477,0.7534,2635.4,2634.8,0.7421]
[1724286024478,3.9612,2635.4,2635.2,0.37934]
[1724286029579,3.9612,2635.4,2635.3,0.37933]
[1724286029774,3.9612,2635.4,2635.2,0.37934]
[1724286030585,3.9612,2635.4,2635.3,0.37933]
[1724286030786,3.2078,2635.4,2635.3,0.37933]
[1724286032384,3.2078,2635.4,2635.2,0.75953]
[1724286033490,0.3631,2635.3,2635.2,0.75953]
[1724286034684,4.1575,2635.3,2635.1,0.0045]
[1724286034889,0.3721,2635.2,2635.1,0.0045]
[1724286035188,0.75144,2635.2,2635.1,0.0045]
[1724286035399,4.54664,2635.2,2635.1,0.0045]
[1724286035891,4.1673,2635.2,2635.1,0.0045]
[1724286036086,0.3721,2635.2,2635.1,0.0045]
[1724286037891,0.3721,2635.2,2635.1,0.38386]
[1724286039186,3.5799,2635.2,2635.1,0.38386]
[1724286040198,3.5799,2635.2,2635.1,0.0045]
[1724286040495,7.3751,2635.2,2635.1,0.0045]
[1724286042603,4.1673,2635.2,2635.1,0.0045]
[1724286042785,7.3751,2635.2,2635.1,0.0045]
[1724286043385,7.3751,2635.2,2635.1,0.38386]
[1724286043386,3.5799,2635.2,2635.1,0.38386]
[1724286048900,3.5799,2635.2,2635.1,0.0045]
[1724286049792,3.5799,2635.2,2635.1,0.38386]
[1724286050705,3.5799,2635.2,2635.1,0.37936]
[1724286052605,4.9469,2635.2,2635.1,0.37936]
[1724286053903,3.5799,2635.2,2635.1,0.37936]
[1724286054110,4.9469,2635.2,2635.1,0.37936]
[1724286058007,1.7391,2635.2,2635.1,0.37936]
[1724286058205,4.9469,2635.2,2635.1,0.37936]
[1724286059207,3.5799,2635.2,2635.1,0.37936]
[1724286062707,3.2078,2635.2,2635.1,1.74636]
[1724286062913,3.21684251,2635.5,2635.4,0.37932]
[1724286065102,3.21684251,2635.5,2635.3,0.37932]
[1724286065611,3.21684251,2635.5,2635.2,2.4392]
[1724286065612,3.21684251,2635.5,2635.4,0.37932]
[1724286066410,4.58384251,2635.5,2635.3,0.37932]
[1724286067316,4.58384251,2635.5,2635.4,0.37932]
[1724286068613,4.58384251,2635.5,2635.3,0.37932]
[1724286068814,3.21684251,2635.5,2635.3,0.37932]
[1724286069211,3.21684251,2635.5,2635.2,1.367]
[1724286069212,4.58384251,2635.5,2635.2,1.74634]
[1724286069416,1.367,2635.3,2635.0,0.75957]
[1724286069718,3.5695,2635.2,2635.0,0.75957]
[1724286069911,3.9545,2635.2,2635.0,0.75957]
[1724286070309,3.21684251,2635.5,2635.4,0.37932]
[1724286070626,0.00904251,2635.5,2635.4,2.69462]
[1724286071123,0.00904251,2635.5,2635.4,27.86903963]
[1724286071319,0.00904251,2635.5,2635.4,28.99243963]
[1724286071622,0.00904251,2635.5,2635.4,28.51802]
[1724286072420,0.00904251,2635.5,2635.4,27.15102]
[1724286072720,0.00904251,2635.5,2635.4,2.45102]
[1724286073108,0.00904251,2635.5,2635.4,27.15102]
[1724286073310,0.00904251,2635.5,2635.4,30.94542]
[1724286073521,0.00904251,2635.5,2635.4,31.41983132]
[1724286073710,0.00904251,2635.5,2635.4,30.94542]
[1724286073912,0.00904251,2635.5,2635.4,31.41983692]
[1724286074122,0.00904251,2635.5,2635.4,36.41983692]
[1724286074323,0.00904251,2635.5,2635.4,35.94542]
[1724286078219,0.00904251,2635.5,2635.4,36.21589859]
[1724286078926,0.00904251,2635.5,2635.4,11.51589859]
[1724286079325,0.00904251,2635.5,2635.4,31.21589859]
[1724286079628,0.3792,2636.3,2635.4,31.21589859]
[1724286079629,3.2078,2636.4,2635.6,0.94821]
[1724286079926,3.2078,2636.4,2636.3,0.37919]
[1724286080731,3.2119995,2636.4,2636.3,0.38300239]
[1724286087335,3.5687995,2636.4,2636.3,0.38300239]
[1724286087838,7.3615995,2636.4,2636.3,0.38300239]
[1724286089028,7.3615995,2636.4,2636.3,0.00381239]
[1724286089636,7.7407695,2636.4,2636.3,0.00381239]
[1724286089939,12.7407695,2636.4,2636.3,0.00381239]
[1724286090632,7.7407695,2636.4,2636.3,0.00381239]
[1724286091634,7.3615995,2636.4,2636.3,0.00381239]
[1724286092036,7.7407695,2636.4,2636.3,0.00381239]
[1724286092740,9.1067695,2636.4,2636.3,0.00381239]
[1724286094929,7.3615995,2636.4,2636.3,0.38300239]
[1724286096344,3.5687995,2636.4,2636.3,0.38300239]
[1724286098644,3.5687995,2636.4,2636.3,1.74900239]
[1724286102437,7.3615995,2636.4,2636.3,0.00381239]
[1724286102639,7.7407695,2636.4,2636.3,0.00381239]
[1724286102939,7.3615995,2636.4,2636.3,0.38300239]
[1724286103144,3.5687995,2636.4,2636.3,1.74900239]
[1724286103649,3.2119995,2636.4,2636.3,1.74900239]
[1724286103844,3.2119995,2636.4,2636.3,2.69697239]
[1724286104639,3.2119995,2636.4,2636.3,11.48977239]
[1724286104840,0.0041995,2636.4,2636.3,11.48977239]
[1724286105151,3.5682,2637.2,2636.5,0.37916]
[1724286105342,3.5682,2637.2,2637.1,1.74507]
[1724286106039,3.5682,2637.2,2636.6,5.2721]
[1724286106040,3.95005507,2637.2,2637.0,1.366]
[1724286106241,0.3491,2637.1,2637.0,1.74509]
[1724286106837,0.3491,2637.1,2636.6,29.9721]
[1724286106838,0.37909,2637.0,2636.8,1.366]
[1724286107038,3.2078,2636.9,2636.8,1.366]
[1724286107441,0.3785,2637.0,2636.8,1.74511]
[1724286107749,1.72919507,2637.2,2637.1,0.37907]
[1724286107750,0.36319507,2637.2,2637.1,0.37907]
[1724286107943,0.36319507,2637.2,2637.1,1.74507]
[1724286108348,3.57099507,2637.2,2637.0,1.366]
[1724286108647,3.95005507,2637.2,2636.7,0.3823]
[1724286108842,3.2078,2636.9,2636.7,1.366]
[1724286109042,0.3785,2636.8,2636.7,1.74513]
[1724286109243,1.137,2636.8,2636.7,1.366]
[1724286109542,4.9298,2636.8,2636.6,1.74514]
[1724286109749,1.137,2636.8,2636.6,1.74514]
[1724286110350,4.9298,2636.8,2636.6,1.366]
[1724286110551,5.30892,2636.8,2636.5,0.37916]
[1724286110856,1.137,2636.8,2636.5,0.37916]
[1724286111244,1.137,2636.8,2636.5,0.37915]
[1724286111955,4.72391,2636.8,2636.4,2.11897]
[1724286112146,4.3448,2636.8,2636.5,0.37915]
[1724286112550,8.1376,2636.8,2636.4,1.366]
[1724286112745,4.3448,2636.8,2636.6,0.37914]
[1724286113248,3.7928,2636.7,2636.6,0.37914]
[1724286113448,3.7928,2636.7,2636.5,0.37915]
[1724286113658,4.3448,2636.8,2636.6,0.37914]
[1724286113853,4.3448,2636.8,2636.6,1.74514]
[1724286114045,3.7928,2636.7,2636.6,1.74514]
[1724286114454,3.7928,2636.7,2636.6,1.366]
[1724286117562,0.37914,2636.6,2636.5,1.366]
[1724286117761,0.37914,2636.6,2636.4,1.366]
[1724286117957,3.2078,2636.5,2636.4,1.366]
[1724286118360,7.0006,2636.5,2636.3,1.36981239]
[1724286118557,0.733,2636.4,2636.3,1.36981239]
[1724286120857,1.11217,2636.4,2636.3,1.36981239]
[1724286121357,0.733,2636.4,2636.3,1.36981239]
[1724286123267,0.733,2636.4,2636.3,0.00381239]
[1724286123268,4.90497,2636.4,2636.3,0.00381239]
[1724286127859,8.11277,2636.4,2636.3,0.00381239]
[1724286130354,8.11277,2636.4,2635.7,0.3851]
[1724286130355,13.73154,2636.4,2635.7,0.3851]
[1724286130655,13.73154,2636.4,2635.3,0.99392238]
[1724286130656,4.5738,2635.8,2635.4,1.74531]
[1724286130852,1.1265,2635.7,2635.5,0.3793]
[1724286131061,1.1265,2635.7,2635.6,1.366]
[1724286131265,4.9209,2635.7,2635.6,1.366]
[1724286131564,3.7944,2635.7,2635.6,1.75005686]
[1724286131761,3.2078,2635.8,2635.7,0.37927]
[1724286131961,3.2078,2635.8,2635.7,2.12207]
[1724286132665,3.2078,2635.8,2635.7,5.91567]
[1724286133472,7.7175,2635.8,2635.6,0.00476686]
[1724286133660,3.9239,2635.8,2635.7,1.366]
[1724286133970,3.9239,2635.8,2635.7,1.74527]
[1724286134167,3.2078,2635.8,2635.7,2.49847]
[1724286134864,3.2078,2635.8,2635.7,6.29207]
[1724286138355,0.00568376,2635.9,2635.8,0.37926]
[1724286138561,3.2078,2636.6,2635.8,5.10324]
[1724286138770,3.2078,2636.6,2636.4,0.37917]
[1724286139071,3.2078,2636.6,2636.5,0.7315]
[1724286139471,7.0006,2636.6,2636.5,0.7315]
[1724286144466,3.2078,2636.6,2636.5,0.7315]
[1724286144672,3.15619264,2636.6,2636.5,4.90346]
[1724286148070,3.15619264,2636.6,2636.5,1.11066]
[1724286148364,3.15619264,2636.6,2636.5,0.7315]
[1724286148560,3.15619264,2636.6,2636.5,0.3615]
[1724286148771,3.50769264,2636.6,2636.5,0.3615]
[1724286149778,3.50769264,2636.6,2636.5,0.74066]
[1724286151079,3.15619264,2636.6,2636.5,0.74066]
[1724286151273,3.15619264,2636.6,2636.5,4.53346]
[1724286152170,3.15619264,2636.6,2636.5,0.74066]
[1724286153379,3.15619264,2636.6,2636.5,4.53346]
[1724286153767,0.00568376,2636.8,2636.7,0.37913]
[1724286154169,0.00568376,2636.8,2636.7,4.17193]
[1724286154370,0.00568376,2636.8,2636.7,0.74423]
[1724286157476,0.00568376,2636.8,2636.6,0.37913]
[1724286157679,0.00568376,2636.8,2636.7,0.37913]
[1724286157877,0.71728376,2636.8,2636.7,0.37913]
[1724286158078,4.51008376,2636.8,2636.7,0.37913]
[1724286159078,0.71728376,2636.8,2636.7,0.37913]
[1724286159278,4.51008376,2636.8,2636.7,0.37913]
[1724286159769,0.71728376,2636.8,2636.7,0.37913]
[1724286160169,4.51008376,2636.8,2636.7,0.37913]
[1724286162581,0.71728376,2636.8,2636.7,0.37913]
[1724286164084,0.71728376,2636.8,2636.5,0.3615]
[1724286164587,3.58694,2636.7,2636.4,0.37917]
[1724286164788,3.58693,2636.7,2636.4,0.37917]
[1724286164979,0.3724,2636.6,2636.5,0.37916]
[1724286167484,0.71728376,2636.8,2636.7,0.37913]
[1724286167883,0.35848376,2636.8,2636.7,0.37913]
[1724286168795,0.00568376,2636.8,2636.7,4.17193]
[1724286169380,0.00568376,2636.8,2636.7,7.44993]
[1724286171792,0.00568376,2636.8,2636.7,12.44993]
[1724286172294,0.00568376,2636.8,2636.7,15.65773]
[1724286172597,0.00568376,2636.8,2636.7,16.74993]
[1724286173290,0.00568376,2636.8,2636.7,11.74993]
[1724286173487,0.00568376,2636.8,2636.7,16.74993]
[1724286174195,0.00568376,2636.8,2636.7,11.74993]
[1724286174399,0.00568376,2636.8,2636.7,16.74993]
[1724286174899,0.00568376,2636.8,2636.7,41.44993]
[1724286176296,0.00568376,2636.8,2636.7,42.39776]
[1724286180598,0.00568376,2636.8,2636.7,40.48476]
[1724286180794,0.00568376,2636.8,2636.7,35.48476]
[1724286180997,0.00568376,2636.8,2636.7,40.48476]
[1724286184199,0.00568376,2636.8,2636.7,39.53693]
[1724286184401,0.00568376,2636.8,2636.7,1.74413]
[1724286186204,0.37915,2636.6,2636.1,0.99392238]
[1724286186500,13.37128376,2636.8,2635.6,0.26718904]
[1724286186501,3.2078,2636.3,2635.6,0.26718904]
[1724286186807,3.2078,2636.3,2635.9,0.37924]
[1724286187006,3.2078,2636.3,2636.0,0.3655]
[1724286188612,3.2078,2636.3,2635.9,0.37924]
[1724286189704,3.2078,2636.3,2635.8,3.65825]
[1724286190599,3.2078,2636.3,2635.7,0.3655]
[1724286191603,3.2078,2636.3,2635.9,0.37924]
[1724286192207,3.2033,2636.3,2635.9,0.37924]
[1724286192508,3.2033,2636.3,2636.1,0.3792]
[1724286192713,3.2033,2636.3,2636.2,0.363]
[1724286193407,3.2033,2636.3,2636.1,0.3792]
[1724286194005,1.1031,2636.5,2636.1,0.3792]
[1724286195115,1.1031,2636.5,2636.1,0.37921]
[1724286195406,1.1031,2636.5,2636.2,0.3792]
[1724286196605,1.1031,2636.5,2636.0,3.642]
[1724286196606,1.1031,2636.5,2636.3,0.37918]
[1724286196806,1.1031,2636.5,2636.2,0.37919]
[1724286197309,1.1031,2636.5,2635.6,3.28376686]
[1724286197613,1.1031,2636.5,2636.0,0.37922]
[1724286197813,3.2078,2636.3,2636.0,0.37922]
[1724286199310,3.2078,2636.3,2636.0,0.37923]
[1724286200410,3.2078,2636.3,2636.1,0.37921]
[1724286200614,1.1031,2636.5,2636.2,0.37919]
[1724286201207,1.1031,2636.5,2635.8,3.2078]
[1724286201208,1.1031,2636.5,2636.1,0.37921]
[1724286203011,1.1031,2636.5,2636.2,0.3792]
[1724286205419,1.1031,2636.5,2636.4,0.37917]
[1724286207822,0.7292,2636.5,2636.4,0.37917]
[1724286208419,0.3593,2636.7,2636.6,0.37914]
[1724286208720,0.00568376,2636.8,2636.7,0.37913]
[1724286214726,3.79848376,2636.8,2636.6,0.37914]
[1724286214927,0.00568376,2636.8,2636.7,0.37913]
[1724286215425,3.79848376,2636.8,2636.7,0.37913]
[1724286216629,0.00568376,2636.8,2636.7,0.37913]
[1724286216819,3.79848376,2636.8,2636.7,0.37913]
[1724286217632,0.00568376,2636.8,2636.7,0.37913]
[1724286219622,0.00568376,2636.8,2636.7,0.73583]
[1724286228527,0.00568376,2636.8,2636.7,2.10183]
[1724286228722,0.00568376,2636.8,2636.7,6.84246]
[1724286229335,0.00568376,2636.8,2636.7,31.54246]
[1724286229933,0.00568376,2636.8,2636.7,30.59463]
[1724286230436,0.00568376,2636.8,2636.7,29.22863]
[1724286232335,0.00568376,2636.8,2636.7,4.17193]
[1724286234038,0.00568376,2636.8,2636.4,0.3505]
[1724286234239,3.2078,2636.6,2635.8,0.99392238]
[1724286234445,1.0771,2636.5,2636.1,3.277]
[1724286234739,1.0771,2636.5,2636.4,0.37917]
[1724286235639,1.0771,2636.5,2636.3,0.37918]
[1724286236037,4.8699,2636.5,2636.3,0.37918]
[1724286236333,3.7928,2636.4,2636.1,0.37921]
[1724286236638,6.45626,2636.5,2636.1,0.37921]
[1724286236639,5.24906,2636.5,2636.1,0.37921]
[1724286237444,4.8699,2636.5,2636.1,0.37921]
[1724286237645,3.2078,2636.3,2635.6,0.00476686]
[1724286237939,3.7928,2636.4,2635.6,0.00476686]
[1724286237940,3.2078,2635.9,2635.6,0.00476686]
[1724286238146,1.0575,2635.8,2635.6,0.00476686]
[1724286238834,3.7944,2635.7,2635.6,0.00476686]
[1724286239238,1.0575,2635.8,2635.6,0.00476686]
[1724286242635,1.0575,2635.8,2635.6,0.38404686]
[1724286243254,1.0575,2635.8,2635.6,0.00476686]
[1724286243739,1.0575,2635.8,2635.6,0.38405686]
[1724286244045,4.2653,2635.8,2635.6,0.38405686]
[1724286244555,3.5622,2635.8,2635.7,0.37927]
[1724286246934,7.3558,2635.8,2635.7,0.37927]
[1724286247140,7.3558,2635.8,2635.6,0.00476686]
[1724286247332,0.7455,2635.7,2635.6,0.00476686]
[1724286247751,4.5399,2635.7,2635.6,0.00476686]
[1724286248436,4.5399,2635.7,2635.6,0.38405686]
[1724286249346,0.7455,2635.7,2635.6,0.38405686]
[1724286251555,0.3647,2635.7,2635.6,0.38405686]
[1724286258642,4.1591,2635.7,2635.6,0.00476686]
[1724286258841,4.1691,2635.7,2634.7,4.0054]
[1724286259049,3.2078,2635.3,2635.1,0.37936]
[1724286259238,1.1146,2635.2,2635.1,0.37936]
[1724286259946,1.1194447,2635.2,2635.1,0.38413039]
[1724286260646,1.1194447,2635.2,2635.1,0.00477039]
[1724286261949,1.1194447,2635.2,2635.1,0.38413039]
[1724286262354,0.3726447,2635.2,2635.1,0.38413039]
[1724286265853,0.0048447,2635.2,2635.1,0.38413039]
[1724286266756,0.0048447,2635.2,2635.1,4.17933039]
[1724286269455,0.0048447,2635.2,2635.1,0.38413039]
[1724286272662,0.0048447,2635.2,2635.1,1.75013039]
[1724286272856,0.0048447,2635.2,2635.1,0.38413039]
[1724286273161,0.0048447,2635.2,2635.1,1.75013039]
[1724286275951,0.0048447,2635.2,2635.1,2.47213039]
[1724286278658,0.0048447,2635.2,2635.1,2.11733039]
[1724286278961,0.0048447,2635.2,2635.1,1.37077039]
[1724286279155,0.0048447,2635.2,2635.1,0.00477039]
[1724286281858,0.0048447,2635.2,2635.1,0.38413039]
[1724286286765,0.0048447,2635.2,2635.1,1.75013039]
[1724286292266,0.0048447,2635.2,2635.1,0.38413039]
[1724286294770,0.0048447,2635.2,2635.1,1.75013039]
[1724286299866,0.0048447,2635.2,2635.1,0.38413039]
[1724286303676,0.3550447,2635.2,2635.1,0.38413039]
[1724286304180,0.0048447,2635.2,2635.1,1.75013039]
[1724286304479,0.00568376,2635.4,2635.3,1.32766]
[1724286304675,7.2968,2635.8,2635.7,0.37927]
[1724286304676,3.2078,2635.8,2635.7,0.37927]
[1724286305180,3.2078,2635.8,2635.7,4.17287]
[1724286305373,3.2117083,2635.8,2635.7,4.89897]
[1724286307776,0.0039083,2635.8,2635.7,1.10537]
[1724286307976,7.0053083,2635.8,2635.6,0.37928]
[1724286308181,0.7015,2635.7,2635.6,0.37928]
[1724286308678,4.4959,2635.7,2635.6,0.37928]
[1724286310078,0.7015,2635.7,2635.6,1.74528]
[1724286310279,4.4959,2635.7,2635.6,1.74528]
[1724286311877,3.2117083,2635.8,2635.7,0.37927]
[1724286312075,3.2117083,2635.8,2635.7,2.13017]
[1724286312277,3.2117083,2635.8,2635.7,5.92377]
[1724286314479,3.2117083,2635.8,2635.7,4.55777]
[1724286316375,0.0039083,2635.8,2635.7,5.50596]
[1724286318885,0.0039083,2635.8,2635.7,5.76580605]
[1724286321191,0.0039083,2635.8,2635.7,4.55777]
[1724286321881,0.0039083,2635.8,2635.7,0.76417]
[1724286322685,3.7975083,2635.8,2635.7,0.37927]
[1724286323186,4.5206083,2635.8,2635.7,0.37927]
[1724286323371,4.5206083,2635.8,2635.6,0.37928]
[1724286323576,0.7270083,2635.8,2635.6,0.37928]
[1724286323778,1.1062683,2635.8,2635.6,0.37928]
[1724286324073,0.7270083,2635.8,2635.7,0.37927]
[1724286324480,4.5206083,2635.8,2635.7,0.37927]
[1724286326784,4.5206083,2635.8,2635.1,8.16474039]
[1724286326785,4.8998683,2635.8,2635.5,0.37929]
[1724286326984,1.1062683,2635.8,2635.5,0.37929]
[1724286327196,4.17368,2635.7,2635.4,0.37931]
[1724286327379,3.9397,2635.6,2635.3,0.37932]
[1724286327583,3.9397,2635.6,2635.4,0.37931]
[1724286327584,3.5604,2635.6,2635.4,0.37931]
[1724286327984,3.5604,2635.6,2635.1,0.38367039]
[1724286327985,3.7944,2635.5,2635.1,0.38367039]
[1724286328197,0.3714,2635.4,2635.3,0.37932]
[1724286328384,4.1658,2635.4,2635.3,0.37932]
[1724286329993,0.3714,2635.4,2635.3,0.37932]
[1724286330194,4.1658,2635.4,2635.3,0.37932]
[1724286330787,0.3714,2635.4,2635.3,0.37932]
[1724286332187,3.5604,2635.6,2635.5,0.3793]
[1724286334383,0.3526,2635.6,2635.5,0.3793]
[1724286334583,0.3526,2635.6,2635.5,1.7453]
[1724286335997,0.3526,2635.6,2635.5,0.3793]
[1724286336692,7.3548,2635.6,2635.4,0.37931]
[1724286336996,3.5604,2635.6,2635.5,0.3793]
[1724286337387,7.3548,2635.6,2635.5,0.3793]
[1724286348896,7.3548,2635.6,2635.5,1.7453]
[1724286350904,7.73409,2635.6,2635.3,1.366]
[1724286351094,3.93969,2635.6,2635.3,1.74532]
[1724286351297,3.5604,2635.6,2635.3,1.74532]
[1724286351903,0.37934,2635.3,2635.1,0.00477039]
[1724286352109,3.5658,2635.2,2635.1,0.00477039]
[1724286352297,8.1027,2635.2,2635.1,0.00477039]
[1724286354203,8.1027,2635.2,2635.1,0.38413039]
[1724286354702,8.1027,2635.2,2635.1,0.00477039]
[1724286354901,8.1027,2635.2,2635.1,0.38413039]
[1724286355494,8.1027,2635.2,2635.1,0.00477039]
[1724286356101,4.8949,2635.2,2635.1,0.00477039]
[1724286356402,4.1524,2635.2,2635.1,0.38413039]
[1724286356611,0.358,2635.2,2635.1,0.38413039]
[1724286362707,0.358,2635.2,2635.1,0.00477039]
[1724286363014,0.7416,2635.2,2635.1,0.38413039]
[1724286363710,3.7952,2635.1,2634.1,1.366]
[1724286363911,1.366,2634.4,2634.3,0.37947]
[1724286364413,3.2078,2634.5,2634.4,0.37946]
[1724286364607,3.2078,2634.5,2634.4,0.00371386]
[1724286364608,7.0038,2634.5,2634.4,0.00371386]
[1724286364813,7.38324,2634.5,2634.4,0.00371386]
[1724286365013,7.0038,2634.5,2634.4,0.00371386]
[1724286366304,3.2078,2634.5,2634.4,0.00371386]
[1724286370710,7.0038,2634.5,2634.4,0.00371386]
[1724286371510,3.2078,2634.5,2634.4,0.00371386]
[1724286372014,3.2078,2634.5,2634.4,0.38581386]
[1724286374009,7.0038,2634.5,2634.4,0.00371386]
[1724286375211,0.37947,2634.3,2633.8,0.37954]
[1724286375518,3.2078,2634.2,2633.9,0.37953]
[1724286375917,3.5917,2634.2,2633.9,0.37953]
[1724286376213,3.5917,2634.2,2633.9,0.38266722]
[1724286377614,3.5917,2634.2,2633.9,0.00313722]
[1724286377813,3.5917,2634.2,2633.9,0.38265722]
[1724286378118,3.5917,2634.2,2634.0,0.37952]
[1724286378119,3.9639,2634.2,2634.0,0.37952]
[1724286379619,3.9639,2634.2,2633.9,0.00313722]
[1724286379620,3.9639,2634.2,2633.9,0.38265722]
[1724286380010,3.9639,2634.2,2634.0,0.37951]